fUSD/lending_fUSD_20240607
["ID","MTS","AMOUNT","RATE_DAILY","PERIOD"]
[328732414,1717740646202,-150.0,0.00029626,2]
[328732416,1717740646364,-150.0,0.00029628,2]
[328732420,1717740646421,-150.0,0.00029629,2]
[328732422,1717740646431,-150.0,0.0002963,2]
[328732424,1717740646442,-150.0,0.00029632,2]
[328732426,1717740646452,-150.0,0.0002964,2]
[328732428,1717740646461,-150.0,0.00029645,2]
[328732429,1717740646471,-150.0,0.00029646,2]
[328732430,1717740646480,-150.0,0.00029649,2]
[328732431,1717740646490,-150.0,0.00029649,2]
[328732432,1717740646501,-150.0,0.0002965,2]
[328732433,1717740646509,-150.0,0.00029651,2]
[328732434,1717740646518,-150.0,0.00029651,2]
[328732435,1717740646527,-150.0,0.00029654,2]
[328732436,1717740646537,-150.0,0.0002966,2]
[328732437,1717740646547,-150.0,0.00029663,2]
[328732438,1717740646557,-150.0,0.00029667,2]
[328732439,1717740646567,-121.29096193,0.00029681,2]
[328732440,1717740646579,-28.70903807,0.00029681,2]
[328732441,1717740646588,-150.0,0.00029689,2]
[328732442,1717740646598,-150.0,0.00029691,2]
[328732443,1717740646607,-150.0,0.00029692,2]
[328732444,1717740646617,-150.0,0.00029703,2]
[328732445,1717740646626,-150.0,0.00029714,2]
[328732446,1717740646635,-150.0,0.00029724,2]
[328732447,1717740646645,-150.0,0.00029728,2]
[328732448,1717740646654,-685.71,0.0002974,10]
[328732449,1717740646663,-150.0,0.00029741,2]
[328732450,1717740646672,-150.0,0.00029742,2]
[328732451,1717740646682,-150.0,0.00029742,2]
[328732452,1717740646691,-150.0,0.00029743,2]
[328732453,1717740646702,-150.0,0.00029744,2]
[328732454,1717740646712,-150.0,0.00029745,2]
[328732455,1717740646721,-150.0,0.00029746,2]
[328732456,1717740646730,-150.0,0.00029748,2]
[328732457,1717740646740,-150.0,0.00029756,2]
[328732458,1717740646752,-150.0,0.00029757,2]
[328732459,1717740646761,-150.0,0.00029764,2]
[328732460,1717740646771,-137.59910295,0.00029767,15]
[328732461,1717740646780,-150.0,0.00029767,2]
[328732462,1717740646789,-150.0,0.00029768,2]
[328732463,1717740646799,-150.0,0.00029768,2]
[328732464,1717740646808,-150.0,0.00029768,2]
[328732465,1717740646817,-150.0,0.00029771,2]
[328732466,1717740646826,-150.0,0.00029773,2]
[328732467,1717740646836,-150.0,0.00029775,2]
[328732468,1717740646845,-347.3402258,0.00029775,2]
[328732469,1717740646855,-150.0,0.00029778,2]
[328732470,1717740646864,-217.30936521,0.00029782,2]
[328732471,1717740646874,-150.0,0.00029782,2]
[328732473,1717740646883,-533.5330487,0.00029783,15]
[328732477,1717740646918,-150.0,0.00029604,2]
[328732478,1717740646927,-150.0,0.00029714,2]
[328732479,1717740646936,-2125.52634604,0.00029783,15]
[328732480,1717740646945,-706.32980851,0.00029783,15]
[328732481,1717740646955,-150.0,0.00029786,2]
[328732482,1717740646965,-347.3402258,0.00029788,2]
[328732483,1717740646975,-150.0,0.00029788,2]
[328732484,1717740646985,-157.26422373,0.00029788,2]
[328732485,1717740646995,-150.0,0.00029788,2]
[328732486,1717740647005,-150.0,0.00029789,2]
[328732488,1717740647014,-150.0,0.00029789,2]
[328732490,1717740647024,-150.0,0.00029791,2]
[328732492,1717740647034,-150.0,0.00029791,2]
[328732494,1717740647043,-150.0,0.00029792,2]
[328732496,1717740647053,-150.0,0.00029792,2]
[328732498,1717740647063,-150.0,0.00029792,2]
[328732500,1717740647072,-150.0,0.00029795,2]
[328732502,1717740647082,-150.0,0.00029796,2]
[328732504,1717740647091,-150.0,0.00029796,2]
[328732506,1717740647100,-150.0,0.00029796,2]
[328732508,1717740647110,-150.0,0.00029796,2]
[328732510,1717740647124,-160.0,0.000298,2]
[328732512,1717740647133,-345.0,0.000298,2]
[328732514,1717740647142,-150.0,0.000298,2]
[328732516,1717740647152,-2659.05939474,0.000298,15]
[328732518,1717740647162,-691.0,0.000298,2]
[328732520,1717740647172,-200.0,0.000298,2]
[328732521,1717740647181,-706.32980851,0.000298,15]
[328732522,1717740647193,-1013.06,0.000298,2]
[328732523,1717740647202,-1498.0,0.000298,2]
[328732524,1717740647212,-301.32,0.000298,2]
[328732525,1717740647221,-150.0,0.000298,6]
[328732526,1717740647231,-347.3402258,0.000298,2]
[328732527,1717740647242,-150.0,0.00029802,2]
[328732528,1717740647252,-150.0,0.00029804,2]
[328732529,1717740647261,-150.0,0.00029804,2]
[328732530,1717740647271,-150.0,0.00029809,2]
[328732531,1717740647280,-150.0,0.0002981,2]
[328732532,1717740647290,-150.0,0.00029812,2]
[328732533,1717740647299,-347.3402258,0.00029813,2]
[328732534,1717740647308,-157.26422373,0.00029814,2]
[328732535,1717740647318,-150.0,0.00029815,2]
[328732536,1717740647327,-2094.57019289,0.00029817,15]
[328732537,1717740647390,-150.0,0.00029591,2]
[328732538,1717740647400,-186.12016869,0.00029817,15]
[328732539,1717740647411,-378.36903316,0.00029817,15]
[328732540,1717740647421,-706.32980851,0.00029817,15]
[328732541,1717740647430,-155.51639024,0.0002982,2]
[328732542,1717740647442,-150.0,0.00029821,2]
[328732543,1717740647452,-150.0,0.00029821,2]
[328732544,1717740647462,-150.0,0.00029823,2]
[328732545,1717740647472,-150.0,0.00029824,2]
[328732546,1717740647481,-347.3402258,0.00029825,2]
[328732547,1717740647492,-150.0,0.00029829,2]
[328732548,1717740647502,-150.0,0.00029829,2]
[328732549,1717740647512,-150.0,0.0002983,2]
[328732550,1717740647522,-150.0,0.0002983,2]
[328732551,1717740647532,-154.01790389,0.00029831,2]
[328732552,1717740647541,-314.97530499,0.00029832,2]
[328732553,1717740647551,-150.0,0.00029832,2]
[328732554,1717740647561,-150.0,0.00029832,2]
[328732555,1717740647571,-151.0,0.00029833,15]
[328732556,1717740647581,-2659.05939474,0.00029833,15]
[328732557,1717740647590,-706.32980851,0.00029833,15]
[328732558,1717740647600,-150.0,0.00029835,2]
[328732559,1717740647610,-150.0,0.00029836,2]
[328732560,1717740647620,-194.14370843,0.00029838,2]
[328732561,1717740647657,-203.62296555,0.00029743,2]
[328732562,1717740647667,-153.19651737,0.00029838,2]
[328732563,1717740647676,-150.0,0.0002984,2]
[328732564,1717740647686,-53.07894817,0.0002984,2]
[328732565,1717740647698,-96.92105183,0.0002984,2]
[328732566,1717740647707,-151.0,0.00029843,15]
[328732567,1717740647717,-27.58458779,0.00029844,2]
[328732568,1717740647728,-122.41541221,0.00029844,2]
[328732569,1717740647738,-150.0,0.00029845,2]
[328732570,1717740647749,-854.49612871,0.00029848,2]
[328732571,1717740647760,-796.59184823,0.00029848,2]
[328732572,1717740647770,-114.00486947,0.00029848,2]
[328732573,1717740647782,-35.99513053,0.00029848,2]
[328732574,1717740647791,-338.23857496,0.00029849,2]
[328732575,1717740647810,-272.74113704,0.00029849,2]
[328732576,1717740647820,-5127.51114789,0.00029849,2]
[328732577,1717740647831,-6777.35013441,0.00029849,2]
[328732578,1717740647840,-237.2123878,0.00029849,2]
[328732579,1717740647850,-150.0,0.0002985,2]
[328732580,1717740647860,-575.80747814,0.0002985,15]
[328732581,1717740647871,-2083.2519166,0.0002985,15]
[328732582,1717740647880,-706.32980851,0.0002985,15]
[328732583,1717740647890,-347.3402258,0.0002985,2]
[328732584,1717740647900,-150.0,0.00029851,2]
[328732585,1717740647909,-14.76929496,0.00029852,2]
[328732587,1717741051692,17627.0143826,0.0003,40]
[328732623,1717741832754,-436.3905071,0.00017237,2]
[328732624,1717741832764,-155.0,0.00017238,2]
[328732625,1717741832774,-8.6094929,0.00017239,2]
[328732626,1717741832786,-146.3905071,0.00017239,2]
[328732627,1717741832796,-690.35816988,0.00017239,2]
[328732628,1717741832937,-271.2999999,0.00017239,2]
[328732629,1717741832948,-1374.04284819,0.00017239,2]
[328732630,1717741832958,-2073.46729586,0.00019451,2]
[328732631,1717741832969,-8804.40847634,0.00019451,2]
[328732632,1717741832982,-1819.80330232,0.00019451,2]
[328732633,1717741833107,-4255.0,0.00019451,2]
[328732634,1717741833120,-2899.64000025,0.00019451,2]
[328732635,1717741834980,-435.0,0.00019451,2]
[328732636,1717741834992,-315.04,0.00019451,2]
[328732637,1717741835218,-728.92117432,0.00019451,2]
[328732643,1717741838565,-417.33513399,0.00019451,2]
[328732644,1717741838585,-3413.19698996,0.00019451,2]
[328732645,1717741838600,-289.75713167,0.00019451,2]
[328732646,1717741838612,-515.29338044,0.00019451,2]
[328732647,1717741838771,-361.675,0.00019451,2]
[328732648,1717741838784,-2883.43524583,0.00019451,2]
[328732649,1717741838796,-278.46769828,0.00019451,2]
[328732650,1717741838809,-566.76354058,0.00019451,2]
[328732651,1717741838823,-1023.5008851,0.00019451,2]
[328732652,1717741838839,-358.48667185,0.00019451,2]
[328732653,1717741838852,-749.55896018,0.00019451,2]
[328732654,1717741838862,-499.99,0.00019726,2]
[328732655,1717741838872,-226.6238354,0.000201,2]
[328732656,1717741838883,-155.15183442,0.0002409,2]
[328732706,1717741843071,-193.63816558,0.0002409,2]
[328732707,1717741843084,-150.99,0.0002409,2]
[328732708,1717741843094,-172.6,0.00024384,2]
[328732709,1717741843105,-165.0,0.00024384,2]
[328732710,1717741843115,-250.0,0.00024665,2]
[328732711,1717741843125,-250.0,0.00024706,2]
[328732712,1717741843135,-4546.11510424,0.000249,2]
[328732713,1717741843146,-395.35143751,0.000249,2]
[328732714,1717741843156,-407.88,0.00024928,2]
[328732715,1717741843166,-153.48,0.0002499,2]
[328732716,1717741843176,-153.48,0.0002499,2]
[328732717,1717741843186,-56410.47423056,0.00025,2]
[328732720,1717741843852,-707.62966529,0.00025,2]
[328732721,1717741844038,-826.25901472,0.00025,2]
[328732722,1717741844050,-1020.76876148,0.00025,2]
[328732723,1717741844062,-923.77784,0.00025,2]
[328732724,1717741844074,-1220.00000001,0.00025,2]
[328732725,1717741844278,-26079.86188481,0.00025,2]
[328732726,1717741844290,-5788.76414124,0.00025,2]
[328732727,1717741844302,-8754.12917375,0.00025,2]
[328732728,1717741844313,-2267.5,0.00025,2]
[328732729,1717741844326,-510.20555382,0.00025,2]
[328732731,1717741844495,-977.79543901,0.00025,2]
[328732737,1717741846843,-21276.9697937,0.00025,2]
[328732738,1717741846854,-1376.84603702,0.00025,2]
[328732739,1717741846866,-322.9200001,0.00025,2]
[328732740,1717741847024,-1333.14755087,0.00025,2]
[328732741,1717741847618,-462.26350656,0.00025,2]
[328732742,1717741847637,-35512.0796249,0.00025,2]
[328732750,1717742023825,584875.23517497,0.00014,2]
[328732752,1717742047208,155.0,0.00014,2]
[328732753,1717742056274,362.85834995,0.00014,2]
[328732754,1717742065212,287.48820092,0.00014,2]
[328732755,1717742074366,362.77118143,0.00014,2]
[328732756,1717742135928,277.83202736,0.00025,30]
[328732759,1717742629531,-436.3905071,0.00014668,2]
[328732760,1717742629558,-155.0,0.00014669,2]
[328732761,1717742629587,-155.0,0.0001467,2]
[328732762,1717742629612,-155.0,0.00014671,2]
[328732763,1717742629638,-2335.70101797,0.00014672,2]
[328732764,1717742641896,155.0,0.00013498,2]
[328732766,1717742659897,176.45645745,0.00013498,2]
[328732767,1717742682136,1431.45201748,0.00014574,2]
[328732768,1717742969151,-155.0,0.00014366,2]
[328732769,1717742969172,-155.0,0.00014366,2]
[328732770,1717742969194,-2623.853,0.00014367,2]
[328732778,1717743031979,-155.0,0.00014365,2]
[328732779,1717743031989,-150.0,0.00014959,2]
[328732813,1717743032315,-570.19,0.0001499,3]
[328732814,1717743032334,-153.63,0.0001499,2]
[328732815,1717743032344,-153.63,0.0001499,2]
[328732816,1717743032354,-153.63,0.0001499,2]
[328732817,1717743032366,-153.63,0.0001499,2]
[328732818,1717743032376,-153.63,0.0001499,2]
[328732819,1717743032385,-224.63147008,0.0001499,2]
[328732820,1717743032395,-162.78459659,0.00014998,2]
[328732821,1717743032404,-382.11574582,0.00014998,2]
[328732822,1717743032413,-561.53636713,0.00014998,2]
[328732823,1717743032424,-155.0,0.00014998,2]
[328732824,1717743032433,-156.31775055,0.00014998,2]
[328732825,1717743032443,-583.96278429,0.00014999,2]
[328732826,1717743032452,-296002.71727229,0.00015,2]
[328732827,1717743032464,-2912.63859603,0.00015,2]
[328732828,1717743032476,-500.0,0.00015,2]
[328732829,1717743032487,-424.54627044,0.00015,2]
[328732830,1717743032498,-2686.79736353,0.00015,2]
[328732831,1717743032509,-259.86200001,0.00015,2]
[328732832,1717743032521,-357.4799971,0.00015,2]
[328732848,1717743032658,-114717.0629934,0.00015,2]
[328732851,1717743032670,-216496.97678305,0.00015,2]
[328732854,1717743032681,-418.90217464,0.00015,2]
[328732857,1717743032693,-243820.23362561,0.00015,2]
[328732860,1717743032705,-4443.51873846,0.00015,2]
[328732865,1717743032731,-781.95019923,0.00015,2]
[328732869,1717743032743,-2130.44985288,0.00015,2]
[328732872,1717743032755,-827.13712285,0.00015,2]
[328732874,1717743032767,-871.5527439,0.00015,2]
[328732877,1717743032778,-1382.79356823,0.00015,2]
[328732880,1717743032790,-544.0998858,0.00015,2]
[328732884,1717743032805,-667.36237526,0.00015,2]
[328732906,1717743037982,-155.0,0.00014364,2]
[328732907,1717743037992,-155.0,0.00014367,2]
[328732908,1717743038002,-7857.84497334,0.00015,2]
[328732909,1717743038319,-3946.75491717,0.00015,2]
[328732910,1717743038331,-15758.54014159,0.00015,2]
[328733014,1717743041078,-62121.55225901,0.00015,2]
[328733015,1717743042461,-323487.16562769,0.00015,2]
[328733016,1717743042475,-174699.3471748,0.00015,2]
[328733017,1717743043106,-100835.51296403,0.00015,2]
[328733022,1717743043484,-5530.66000469,0.00015,2]
[328733023,1717743043496,-956.30389918,0.00015,2]
[328733024,1717743043508,-2551.59224298,0.00015,2]
[328733025,1717743043520,-609.73404011,0.00015,2]
[328733026,1717743043532,-2648.27241727,0.00015,2]
[328733027,1717743043914,-376194.98515891,0.00015,2]
[328733028,1717743046176,-492.40673128,0.00015,2]
[328733029,1717743046190,-4715.32232262,0.00015,2]
[328733030,1717743046202,-22365.9212155,0.00015,2]
[328733031,1717743046217,-2137.38390002,0.00015,2]
[328733032,1717743046229,-587.2684,0.00015,2]
[328733033,1717743046532,-2608.50754599,0.00015,2]
[328733034,1717743206724,-1001.0,0.00014895,2]
[328733035,1717743209950,-300.8429916,0.00014895,2]
[328733036,1717743209983,-235.01777921,0.00014896,2]
[328733037,1717743210016,-209.41336991,0.00014896,2]
[328733038,1717743210038,-300.8429916,0.00014897,2]
[328733039,1717743210059,-235.01777921,0.00014897,2]
[328733040,1717743210073,-209.41336991,0.00014897,2]
[328733041,1717743210093,-8096.45171856,0.00014897,2]
[328733042,1717743274342,-1900.83710375,0.00014163,2]
[328733043,1717743274413,-1453.05165178,0.00014164,2]
[328733044,1717743288136,-201.57961596,0.00014162,2]
[328733045,1717743288161,-799.42038404,0.00014162,2]
[328733047,1717743353245,-1252.78326197,0.00014161,2]
[328733048,1717743353278,-267.18972619,0.00014161,2]
[328733049,1717743353310,-410.69975604,0.00014162,2]
[328733050,1717743353403,-1438.6545116,0.00014163,2]
[328733051,1717743460877,-5200.0,0.00014062,2]
[328733052,1717743654935,-377.59152178,0.00014162,2]
[328733053,1717743654965,-3107.43968043,0.00014165,2]
[328733054,1717743654994,-15774.904,0.00014265,2]
[328733055,1717743655021,-224.63147009,0.0001499,2]
[328733056,1717743655050,-1005.15291666,0.00014999,2]
[328733057,1717743655081,-859492.97009141,0.00015,2]
[328733072,1717744232392,-2309.31788683,0.00014849,2]
[328733073,1717744232402,-150.0,0.0001485,2]
[328733074,1717744232412,-150.0,0.0001485,2]
[328733075,1717744232421,-150.0,0.0001485,2]
[328733076,1717744232431,-150.0,0.0001485,2]
[328733077,1717744232440,-150.0,0.0001485,2]
[328733078,1717744232449,-150.0,0.0001485,2]
[328733079,1717744232458,-150.0,0.0001485,2]
[328733080,1717744232468,-150.0,0.0001485,2]
[328733081,1717744232477,-199.06263,0.0001485,2]
[328733082,1717744232486,-1876.65028256,0.00015,2]
[328733083,1717744232498,-18613.0693064,0.00015,2]
[328733084,1717744232508,-156.6398693,0.00015,2]
[328733085,1717744232518,-1582.09642,0.00015,2]
[328733086,1717744232527,-499.99,0.0001685,2]
[328733087,1717744232537,-1386.41,0.0001685,2]
[328733088,1717744232546,-257.161843,0.00016986,2]
[328733089,1717744232556,-999.99,0.00017808,2]
[328733090,1717744232565,-161.78,0.00017808,2]
[328733091,1717744232575,-257.161843,0.00017808,2]
[328733092,1717744232584,-364.24,0.00018218,2]
[328733093,1717744232594,-521.45,0.00018218,2]
[328733094,1717744232604,-257.161843,0.0001863,2]
[328733095,1717744232613,-257.161843,0.00019452,2]
[328733096,1717744232623,-1852.42,0.00019865,2]
[328733097,1717744232632,-236.16,0.00019882,2]
[328733098,1717744232641,-1913.89,0.00019987,2]
[328733099,1717744232651,-1582.09643,0.0002,2]
[328733100,1717744232660,-1000.0,0.00020035,2]
[328733101,1717744232670,-492.17,0.00020057,2]
[328733102,1717744232679,-391.88,0.00020079,2]
[328733103,1717744232689,-226.6238354,0.000201,2]
[328733104,1717744232699,-150.0,0.00020113,2]
[328733105,1717744232708,-11319.64,0.00020116,2]
[328733106,1717744232717,-1156.48,0.00020117,2]
[328733107,1717744232726,-250.0,0.00020136,2]
[328733108,1717744232735,-1224.89,0.00020138,2]
[328733109,1717744232746,-194.11,0.00020147,2]
[328733110,1717744232755,-944.6,0.00020151,2]
[328733111,1717744232765,-250.0,0.00020151,2]
[328733112,1717744232774,-23900.0,0.00020161,2]
[328733113,1717744232783,-2307.82,0.00020168,2]
[328733114,1717744232793,-1869.39,0.00020169,2]
[328733115,1717744232802,-500.0,0.00020183,2]
[328733116,1717744232812,-35666.26,0.00020192,2]
[328733117,1717744232822,-492.1,0.00020196,2]
[328733118,1717744232831,-257.161843,0.00020274,2]
[328733119,1717744232840,-335.76,0.00020431,2]
[328733120,1717744232849,-1267.97,0.00020434,2]
[328733121,1717744232859,-521.45,0.00020482,2]
[328733122,1717744232868,-178.72,0.00020674,2]
[328733123,1717744232878,-155.57,0.00020739,2]
[328733124,1717744232887,-167.49,0.0002099,2]
[328733125,1717744232896,-257.161843,0.00021096,2]
[328733126,1717744232906,-155.57,0.0002182,2]
[328733127,1717744232915,-737.05590411,0.000219,2]
[328733128,1717744232924,-362.34,0.00021918,2]
[328733129,1717744232934,-250.0,0.00021918,2]
[328733130,1717744232943,-257.161843,0.00021918,2]
[328733131,1717744232953,-1000.0,0.00022539,2]
[328733132,1717744232962,-521.45,0.00022746,2]
[328733133,1717744232971,-1869.39,0.00022909,2]
[328733134,1717744232980,-165.38,0.00022936,2]
[328733135,1717744232990,-184.93432587,0.00023013,2]
[328733136,1717744233000,-800.0,0.00023014,2]
[328733137,1717744233009,-181.02322394,0.00023116,2]
[328733138,1717744233019,-156.67,0.00024384,2]
[328733139,1717744233028,-312.74,0.00024384,2]
[328733140,1717744233038,-183.72,0.00024384,2]
[328733141,1717744233049,-172.6,0.00024384,2]
[328733142,1717744233058,-4742.37713177,0.000248,2]
[328733143,1717744233068,-5146.1529,0.000248,2]
[328733144,1717744233078,-269.07080628,0.00024898,2]
[328733145,1717744233088,-542.09946041,0.00024898,2]
[328733146,1717744233097,-500.0,0.00024899,2]
[328733147,1717744233107,-339.17741633,0.00024899,2]
[328733148,1717744233116,-2673.0,0.000249,2]
[328733149,1717744233125,-188.01944471,0.000249,2]
[328733150,1717744233135,-2580.0,0.000249,2]
[328733151,1717744233144,-191.59336961,0.000249,2]
[328733152,1717744233158,-100000.0,0.000249,2]
[328733153,1717744233167,-393.980662,0.000249,2]
[328733154,1717744233177,-341.14652926,0.000249,2]
[328733155,1717744233192,-153.5,0.00024989,2]
[328733156,1717744233203,-153.53,0.0002499,2]
[328733157,1717744233212,-500.0,0.00024999,2]
[328733158,1717744233222,-637.79730364,0.00024999,2]
[328733159,1717744233234,-500.0,0.00024999,2]
[328733160,1717744233244,-151.77568994,0.00024999,2]
[328733161,1717744233253,-500.0,0.00024999,2]
[328733162,1717744233262,-500.0,0.00024999,2]
[328733163,1717744233271,-500.0,0.00024999,2]
[328733164,1717744233280,-500.0,0.00024999,2]
[328733165,1717744233289,-338.24100371,0.00024999,2]
[328733166,1717744233299,-500.0,0.00024999,2]
[328733167,1717744233309,-500.0,0.00024999,2]
[328733168,1717744233319,-500.0,0.00024999,2]
[328733169,1717744233329,-500.0,0.00024999,2]
[328733170,1717744233339,-500.0,0.00024999,2]
[328733171,1717744233348,-385.55402443,0.00024999,2]
[328733172,1717744233357,-500.0,0.00024999,2]
[328733173,1717744233366,-500.0,0.00024999,2]
[328733174,1717744233375,-500.0,0.00024999,2]
[328733175,1717744233384,-179.30896457,0.00025,2]
[328733176,1717744233394,-34972.42451795,0.00025,2]
[328733177,1717744233403,-446.79515573,0.00025,2]
[328733178,1717744233412,-1250.0,0.00025,2]
[328733179,1717744233422,-93072.7906902,0.00025,2]
[328733181,1717744234494,-257.161843,0.0002274,2]
[328733183,1717744234503,-257.161843,0.00023562,2]
[328733185,1717744234514,-1757.62633079,0.00025,2]
[328733187,1717744234527,-2146.551421,0.00025,2]
[328733190,1717744234541,-1000.11052844,0.00025,2]
[328733191,1717744234556,-4404.53191258,0.00025,2]
[328733346,1717744242938,-257.161843,0.00024384,2]
[328733348,1717744242947,-346726.37294281,0.00025,2]
[328733350,1717744242959,-250.18907749,0.00025,2]
[328733362,1717744243356,-7029.3901407,0.00025,2]
[328733363,1717744243368,-3171.63035937,0.00025,2]
[328733364,1717744243379,-2115.67601262,0.00025,2]
[328733365,1717744243392,-2114.51062391,0.00025,2]
[328733366,1717744243618,-1993.23681819,0.00025,2]
[328733367,1717744243630,-1706.16263117,0.00025,2]
[328733368,1717744243641,-3944.40911638,0.00025,2]
[328733369,1717744243892,-836.60016149,0.00025,2]
[328733378,1717744243966,-45476.30555989,0.00025,2]
[328733380,1717744243980,-29358.90567297,0.00025,2]
[328733382,1717744243989,-200.0,0.00025,2]
[328733384,1717744243999,-1276.38374304,0.00025,2]
[328733386,1717744244010,-155.0,0.00025,2]
[328733388,1717744244020,-1582.09643,0.00025,2]
[328733390,1717744244029,-521.45,0.0002501,2]
[328733392,1717744244038,-1000.0,0.00025044,2]
[328733394,1717744244048,-626.0,0.000253,2]
[328733397,1717744244057,-4742.3771317,0.00025367,2]
[328733399,1717744244067,-1869.39,0.00025649,2]
[328733401,1717744244076,-4742.3771317,0.00025933,2]
[328733403,1717744244085,-500.0,0.00025939,2]
[328733405,1717744244096,-500.0,0.00025939,2]
[328733406,1717744244105,-500.0,0.00025939,2]
[328733409,1717744244115,-502.76117767,0.00025939,2]
[328733411,1717744244124,-191.59336961,0.00026116,2]
[328733413,1717744244137,-4742.3771317,0.000265,2]
[328733415,1717744244147,-393.98066198,0.00026925,2]
[328733416,1717744244158,-4028.02815761,0.00027,2]
[328733419,1717744244169,-200.0,0.00027,2]
[328733422,1717744244178,-1300.0,0.00027,2]
[328733425,1717744244187,-500.0,0.00027035,2]
[328733427,1717744244199,-4742.3771317,0.00027067,2]
[328733428,1717744244208,-545.0,0.0002713,2]
[328733430,1717744244217,-5780.0,0.0002713,2]
[328733432,1717744244227,-290.0,0.0002713,2]
[328733434,1717744244237,-5152.0,0.0002713,2]
[328733436,1717744244246,-12488.351,0.0002713,2]
[328733438,1717744244257,-1069.666,0.0002713,2]
[328733439,1717744244266,-521.45,0.00027274,2]
[328733441,1717744244276,-191.59336961,0.00027332,2]
[328733443,1717744244286,-516.15976631,0.0002739,2]
[328733445,1717744244295,-150.0,0.00027397,2]
[328733447,1717744244304,-431.95347413,0.00027397,2]
[328733449,1717744244314,-396.82,0.00027397,10]
[328733450,1717744244324,-505.29,0.00027397,10]
[328733452,1717744244334,-2000.0,0.000274,2]
[328733454,1717744244343,-341.14652925,0.000274,2]
[328733456,1717744244352,-158.33,0.000274,2]
[328733458,1717744244361,-150.0,0.00027534,2]
[328733460,1717744244370,-1000.0,0.00027548,2]
[328733461,1717744244380,-4742.3771317,0.00027633,2]
[328733463,1717744244389,-2673.92390445,0.000277,2]
[328733464,1717744244398,-665.0282974,0.00028,2]
[328733465,1717744244408,-354.0,0.000281,2]
[328733466,1717744244417,-1000.0,0.000281,2]
[328733467,1717744244426,-224.0,0.000281,2]
[328733468,1717744244435,-500.0,0.00028131,2]
[328733469,1717744244444,-4742.3771317,0.000282,2]
[328733470,1717744244454,-2307.82,0.00028235,2]
[328733471,1717744244463,-977.0,0.0002831,2]
[328733472,1717744244474,-211.0,0.0002831,2]
[328733473,1717744244484,-410.0,0.0002831,2]
[328733474,1717744244494,-151.063,0.0002831,2]
[328733475,1717744244503,-2404.0,0.0002831,2]
[328733476,1717744244514,-808.0,0.0002831,2]
[328733477,1717744244523,-165.0,0.0002831,2]
[328733478,1717744244531,-446.0,0.0002831,2]
[328733479,1717744244541,-3173.0,0.0002831,2]
[328733480,1717744244550,-150.0,0.0002831,2]
[328733481,1717744244559,-1304.0,0.0002831,2]
[328733482,1717744244569,-912.94870873,0.00028368,2]
[328733483,1717744244578,-191.59336961,0.00028547,2]
[328733484,1717744244588,-627.94098413,0.00028667,2]
[328733485,1717744244597,-4742.3771317,0.00028767,2]
[328733486,1717744244608,-150.0,0.00028884,2]
[328733487,1717744244617,-3558.19686323,0.000289,2]
[328733488,1717744244627,-500.0,0.00028929,2]
[328733489,1717744244635,-504.0,0.00028929,2]
[328733490,1717744244645,-713.16708994,0.0002893,7]
[328733491,1717744244656,-393.98066198,0.00028949,2]
[328733492,1717744244666,-158.33,0.0002899,2]
[328733493,1717744244676,-3558.19686314,0.00028991,2]
[328733494,1717744244687,-300.0,0.00028999,10]
[328733495,1717744244696,-600.32086613,0.00029,2]
[328733496,1717744244706,-1350.0,0.00029,2]
[328733497,1717744244715,-49367.10424797,0.00029,2]